bitfinex-derivatives/quotes_BTCF0:USTF0_20251214
["timestamp","ask_amount","ask_price","bid_price","bid_amount"]
[1765734682535,0.16832725,88850.0,88849.0,0.1033]
[1765734683325,0.16832725,88850.0,88849.0,0.1043]
[1765734685831,0.16832725,88850.0,88849.0,0.001]
[1765734687128,0.16932725,88850.0,88849.0,0.04817]
[1765734687327,0.16932725,88850.0,88849.0,0.04717]
[1765734688131,0.16932725,88850.0,88849.0,0.09635]
[1765734688330,0.13593725,88850.0,88849.0,0.09635]
[1765734688530,0.13493725,88850.0,88849.0,0.09635]
[1765734688732,0.13593725,88850.0,88849.0,0.09635]
[1765734688927,0.02903725,88850.0,88849.0,0.09635]
[1765734689128,0.07699725,88850.0,88849.0,0.09635]
[1765734689333,0.07599725,88850.0,88849.0,0.09635]
[1765734689533,0.02803725,88850.0,88849.0,0.09835]
[1765734690126,0.46874164,88859.0,88858.0,0.09635]
[1765734690325,0.49678615,88859.0,88858.0,0.09635]
[1765734690930,0.09652,88850.0,88849.0,0.112604]
[1765734691127,0.12423,88850.0,88849.0,0.10135]
[1765734691332,0.15227565,88850.0,88849.0,0.10135]
[1765734691730,0.15227565,88850.0,88849.0,0.09935]
[1765734692238,0.15227565,88850.0,88848.0,0.3608]
[1765734692239,0.1077741,88849.0,88848.0,0.3608]
[1765734692440,0.13581975,88849.0,88848.0,0.3608]
[1765734692933,0.1077749,88843.0,88842.0,0.00016884]
[1765734693139,0.13582055,88843.0,88842.0,0.00016884]
[1765734693341,0.1077764,88831.0,88830.0,0.45715]
[1765734693642,0.09652,88831.0,88830.0,0.45715]
[1765734693941,0.12455432,88831.0,88830.0,0.45715]
[1765734695534,0.12455432,88831.0,88830.0,0.45815]
[1765734695734,0.12455432,88831.0,88830.0,0.46015]
[1765734696240,0.12455432,88831.0,88830.0,0.45915]
[1765734696441,0.12455432,88831.0,88830.0,0.46015]
[1765734697043,0.12455432,88831.0,88830.0,0.45915]
[1765734697245,0.12455432,88831.0,88830.0,0.46015]
[1765734697741,0.12455432,88831.0,88830.0,0.45815]
[1765734697952,0.12455432,88831.0,88830.0,0.46015]
[1765734698445,0.13581072,88831.0,88830.0,0.46015]
[1765734698647,0.13581072,88831.0,88830.0,0.3638]
[1765734699347,0.13581072,88831.0,88830.0,0.41097]
[1765734699532,0.13581072,88831.0,88830.0,0.40897]
[1765734700546,0.13581072,88831.0,88830.0,0.45815]
[1765734700936,0.13581072,88831.0,88830.0,0.45715]
[1765734701135,0.13581072,88831.0,88830.0,0.45815]
[1765734702144,0.13581072,88831.0,88830.0,0.45715]
[1765734702343,0.13581072,88831.0,88830.0,0.45815]
[1765734703941,0.1077764,88831.0,88830.0,0.45815]
[1765734705653,0.1077764,88831.0,88830.0,0.45715]
[1765734705850,0.1077764,88831.0,88830.0,0.45815]
[1765734711757,0.13575245,88831.0,88830.0,0.45815]
[1765734712149,0.13575245,88831.0,88830.0,0.001]
[1765734713258,0.13575245,88831.0,88830.0,0.09635]
[1765734713457,0.13675245,88831.0,88830.0,0.09635]
[1765734714452,0.13875245,88831.0,88830.0,0.09635]
[1765734714654,0.13875245,88831.0,88830.0,0.45715]
[1765734715163,0.13775245,88831.0,88830.0,0.45715]
[1765734715559,0.13675245,88831.0,88830.0,0.45815]
[1765734715970,0.13575245,88831.0,88830.0,0.45815]
[1765734716956,0.02797605,88831.0,88830.0,0.4854]
[1765734717261,0.11715605,88831.0,88830.0,0.1246]
[1765734717454,0.11715605,88831.0,88830.0,0.4854]
[1765734722357,0.11715605,88831.0,88830.0,0.45815]
[1765734723868,0.07186605,88831.0,88830.0,0.45815]
[1765734724069,0.11715605,88831.0,88830.0,0.45815]
[1765734725156,0.07186605,88831.0,88830.0,0.45815]
[1765734725370,0.11715605,88831.0,88830.0,0.45815]
[1765734726664,0.11715605,88831.0,88830.0,0.09735]
[1765734730063,0.02797605,88831.0,88830.0,0.09735]
[1765734730873,0.07186605,88831.0,88830.0,0.09735]
[1765734731065,0.11715605,88831.0,88830.0,0.09735]
[1765734731265,0.02797605,88831.0,88830.0,0.09735]
[1765734732267,0.00016884,88839.0,88838.0,0.1026855]
[1765734732568,0.08934884,88839.0,88838.0,0.4634855]
[1765734732777,0.11750347,88839.0,88838.0,0.4634855]
[1765734733458,0.11850347,88839.0,88838.0,0.4634855]
[1765734733863,0.02932347,88839.0,88838.0,0.4634855]
[1765734734666,0.03032347,88839.0,88838.0,0.4634855]
[1765734735272,0.0551431,88857.0,88856.0,0.09143]
[1765734735477,0.12857031,88857.0,88856.0,0.09143]
[1765734736472,0.1004336,88853.0,88852.0,0.09143]
[1765734736668,0.12857081,88853.0,88852.0,0.09143]
[1765734738380,0.12857081,88853.0,88852.0,0.09243]
[1765734738679,0.12857081,88853.0,88852.0,0.09143]
[1765734738879,0.12857081,88853.0,88852.0,0.09243]
[1765734745780,0.12857081,88853.0,88852.0,0.001]
[1765734745979,0.1004341,88849.0,88848.0,0.00016884]
[1765734746186,0.12857131,88849.0,88848.0,0.00016884]
[1765734746374,0.12857131,88849.0,88848.0,0.04085884]
[1765734746574,0.12857131,88849.0,88848.0,0.08092884]
[1765734747175,0.13057131,88849.0,88848.0,0.08092884]
[1765734747685,0.12857131,88849.0,88848.0,0.08092884]
[1765734748887,0.02913721,88849.0,88848.0,0.08092884]
[1765734749477,0.06970721,88849.0,88848.0,0.08092884]
[1765734749678,0.10972721,88849.0,88848.0,0.08092884]
[1765734750177,0.10872721,88849.0,88848.0,0.08092884]
[1765734750380,0.10872721,88849.0,88848.0,0.08192884]
[1765734751589,0.10872721,88849.0,88848.0,0.08292884]
[1765734751889,0.02813721,88849.0,88848.0,0.08292884]
[1765734752389,0.06870721,88849.0,88848.0,0.08292884]
[1765734752588,0.11998131,88849.0,88848.0,0.08292884]
[1765734753682,0.10872721,88849.0,88848.0,0.08392884]
[1765734754080,0.06870721,88849.0,88848.0,0.08392884]
[1765734754279,0.02813721,88849.0,88848.0,0.08292884]
[1765734755598,0.02813721,88849.0,88848.0,0.08392884]
[1765734756396,0.02813721,88849.0,88848.0,0.08292884]
[1765734756585,0.02813721,88849.0,88848.0,0.08492884]
[1765734757794,0.02813721,88849.0,88848.0,0.08292884]
[1765734758002,0.02813721,88849.0,88848.0,0.08492884]
[1765734759689,0.02813721,88849.0,88848.0,0.08292884]
[1765734759893,0.02813721,88849.0,88848.0,0.08492884]
[1765734760291,0.02813721,88849.0,88848.0,0.08292884]
[1765734760495,0.02813721,88849.0,88848.0,0.08492884]
[1765734762600,0.10872721,88849.0,88848.0,0.08492884]
[1765734763396,0.10872721,88849.0,88848.0,0.08292884]
[1765734763596,0.10872721,88849.0,88848.0,0.08492884]
[1765734763796,0.10872721,88849.0,88848.0,0.00416884]
[1765734764000,0.10872721,88849.0,88848.0,0.00216884]
[1765734764200,0.10872721,88849.0,88848.0,0.00416884]
[1765734764899,0.10872721,88849.0,88848.0,0.04497884]
[1765734765692,0.10972721,88849.0,88848.0,0.04297884]
[1765734765987,0.11072721,88849.0,88848.0,0.04097884]
[1765734766391,0.11072721,88849.0,88848.0,0.08104884]
[1765734766598,0.06970721,88849.0,88848.0,0.09230304]
[1765734766803,0.10972721,88849.0,88848.0,0.09230304]
[1765734767196,0.10872721,88849.0,88848.0,0.09230304]
[1765734767401,0.10972721,88849.0,88848.0,0.04097884]
[1765734767896,0.10972721,88849.0,88848.0,0.00016884]
[1765734768100,0.10872721,88849.0,88848.0,0.08104884]
[1765734768299,0.10872721,88849.0,88848.0,0.08204884]
[1765734768905,0.10872721,88849.0,88848.0,0.08104884]
[1765734769107,0.10872721,88849.0,88848.0,0.08204884]
[1765734770909,0.10872721,88849.0,88848.0,0.08404884]
[1765734773112,0.02813721,88849.0,88848.0,0.08404884]
[1765734773310,0.00016884,88865.0,88864.0,0.0921322]
[1765734773500,0.00016884,88865.0,88864.0,0.4529322]
[1765734774512,0.00316884,88865.0,88864.0,0.4529322]
[1765734775115,0.00116884,88865.0,88864.0,0.4529322]
[1765734775310,0.00116884,88865.0,88864.0,0.4539322]
[1765734775616,0.00016884,88865.0,88864.0,0.4559322]
[1765734776315,0.07979884,88865.0,88864.0,0.4158622]
[1765734776613,0.07979884,88865.0,88864.0,0.08285]
[1765734777504,0.04073884,88865.0,88864.0,0.08285]
[1765734777816,0.07979884,88865.0,88864.0,0.08185]
[1765734778013,0.07979884,88865.0,88864.0,0.07985]
[1765734778319,0.07979884,88865.0,88864.0,0.44165]
[1765734778717,0.07979884,88865.0,88864.0,0.44265]
[1765734779013,0.00016884,88865.0,88864.0,0.44265]
[1765734779410,0.07659884,88865.0,88864.0,0.44265]
[1765734780819,0.07659884,88865.0,88864.0,0.44365]
[1765734781408,0.07659884,88865.0,88864.0,0.44265]
[1765734781910,0.07659884,88865.0,88864.0,0.44065]
[1765734782109,0.07659884,88865.0,88864.0,0.44265]
[1765734783515,0.07659884,88865.0,88864.0,0.44165]
[1765734783713,0.07659884,88865.0,88864.0,0.44265]
[1765734783916,0.07659884,88865.0,88864.0,0.44165]
[1765734784117,0.07659884,88865.0,88864.0,0.44265]
[1765734784417,0.07659884,88865.0,88864.0,0.44165]
[1765734785019,0.07659884,88865.0,88864.0,0.44065]
[1765734785220,0.10451189,88865.0,88864.0,0.44265]
[1765734786416,0.10451189,88865.0,88864.0,0.44165]
[1765734786621,0.10451189,88865.0,88864.0,0.44265]
[1765734787415,0.02808189,88865.0,88864.0,0.44265]
[1765734787817,0.02808189,88865.0,88864.0,0.44165]
[1765734788219,0.02808189,88865.0,88864.0,0.44265]
[1765734788724,0.02808189,88865.0,88864.0,0.44165]
[1765734789026,0.02808189,88865.0,88864.0,0.44265]
[1765734790231,0.10451189,88865.0,88864.0,0.44265]
[1765734791315,0.10451189,88865.0,88864.0,0.44165]
[1765734791514,0.10451189,88865.0,88864.0,0.44265]
[1765734791924,0.10451189,88865.0,88864.0,0.44165]
[1765734793021,0.10451189,88865.0,88864.0,0.44065]
[1765734794725,0.10451189,88865.0,88864.0,0.44265]
[1765734795611,0.10451189,88865.0,88864.0,0.08185]
[1765734796312,0.10451189,88865.0,88864.0,0.08085]
[1765734796511,0.10451189,88865.0,88864.0,0.08185]
[1765734797218,0.0876831,88857.0,88856.0,0.3608]
[1765734797425,0.0876841,88849.0,88848.0,0.43720884]
[1765734797622,0.11559715,88849.0,88848.0,0.43720884]
[1765734799231,0.11559715,88849.0,88848.0,0.43820884]
[1765734799725,0.11559715,88849.0,88848.0,0.39816884]
[1765734799919,0.11559715,88849.0,88848.0,0.43820884]
[1765734800120,0.11559715,88849.0,88848.0,0.07740884]
[1765734800521,0.11559715,88849.0,88848.0,0.07840884]
[1765734801219,0.11559715,88849.0,88848.0,0.07640884]
[1765734801423,0.11559715,88849.0,88848.0,0.07740884]
[1765734801925,0.11559715,88849.0,88848.0,0.07640884]
[1765734803232,0.11559715,88849.0,88848.0,0.08766304]
[1765734803816,0.11559715,88849.0,88848.0,0.08866304]
[1765734804636,0.11559715,88849.0,88848.0,0.08766304]
[1765734804934,0.11559715,88849.0,88848.0,0.08866304]
[1765734805324,0.11559715,88849.0,88848.0,0.08966304]
[1765734805932,0.11559715,88849.0,88848.0,0.07840884]
[1765734806133,0.11559715,88849.0,88848.0,0.07740884]
[1765734806334,0.11559715,88849.0,88848.0,0.07840884]
[1765734806924,0.11559715,88849.0,88848.0,0.07740884]
[1765734807127,0.11559715,88849.0,88848.0,0.07840884]
[1765734807327,0.11559715,88849.0,88848.0,0.07740884]
[1765734807527,0.11559715,88849.0,88848.0,0.07840884]
[1765734807731,0.11559715,88849.0,88848.0,0.07740884]
[1765734807937,0.11559715,88849.0,88848.0,0.07640884]
[1765734808135,0.11559715,88849.0,88848.0,0.43720884]
[1765734809427,0.11559715,88849.0,88848.0,0.43820884]
[1765734810228,0.0876841,88849.0,88848.0,0.43820884]
[1765734810427,0.11553878,88849.0,88848.0,0.43820884]
[1765734811135,0.11553878,88849.0,88848.0,0.43920884]
[1765734811629,0.02785468,88849.0,88848.0,0.44946304]
[1765734812044,0.0798234,88855.0,88854.0,0.06833]
[1765734812339,0.1076768,88855.0,88854.0,0.06833]
[1765734815041,0.1076768,88855.0,88854.0,0.06933]
[1765734815738,0.1286068,88855.0,88854.0,0.06933]
[1765734816642,0.1286068,88855.0,88854.0,0.07033]
[1765734817240,0.1286068,88855.0,88854.0,0.06933]
[1765734817840,0.1286068,88855.0,88854.0,0.07033]
[1765734818441,0.1286068,88855.0,88854.0,0.002]
[1765734818838,0.1286068,88855.0,88854.0,0.001]
[1765734819044,0.1286068,88855.0,88854.0,0.002]
[1765734819343,0.1286068,88855.0,88854.0,0.001]
[1765734819725,0.1286068,88855.0,88854.0,0.06933]
[1765734820132,0.1296068,88855.0,88854.0,0.06933]
[1765734820330,0.1296068,88855.0,88854.0,0.06833]
[1765734820531,0.1096768,88855.0,88854.0,0.06833]
[1765734820840,0.10968449,88855.0,88854.0,0.06833]
[1765734821231,0.10868449,88855.0,88854.0,0.06833]
[1765734821635,0.10768449,88855.0,88854.0,0.06833]
[1765734821830,0.10768449,88855.0,88854.0,0.06933]
[1765734822744,0.10768449,88855.0,88854.0,0.07033]
[1765734822931,0.09643109,88855.0,88854.0,0.07033]
[1765734823138,0.02786109,88855.0,88854.0,0.07033]
[1765734823344,0.02786109,88855.0,88854.0,0.06933]
[1765734823544,0.02786109,88855.0,88854.0,0.07033]
[1765734824343,0.02786109,88855.0,88854.0,0.07133]
[1765734824843,0.02786109,88855.0,88854.0,0.07233]
[1765734825947,0.09643109,88855.0,88854.0,0.07233]
[1765734826441,0.11736109,88855.0,88854.0,0.07233]
[1765734826840,0.11736109,88855.0,88854.0,0.07033]
[1765734827045,0.11736109,88855.0,88854.0,0.07233]
[1765734827236,0.11736109,88855.0,88854.0,0.07033]
[1765734827442,0.09643109,88855.0,88854.0,0.06933]
[1765734827643,0.09643109,88855.0,88854.0,0.07033]
[1765734828645,0.06141109,88855.0,88854.0,0.07033]
[1765734828845,0.02786109,88855.0,88854.0,0.07033]
[1765734829540,0.11736109,88855.0,88854.0,0.07033]
[1765734829745,0.12861439,88855.0,88854.0,0.07033]
[1765734829947,0.10768439,88855.0,88854.0,0.06933]
[1765734830252,0.10768439,88855.0,88854.0,0.07033]
[1765734831340,0.12861439,88855.0,88854.0,0.07033]
[1765734832350,0.12861439,88855.0,88854.0,0.06933]
[1765734832653,0.12861439,88855.0,88854.0,0.07033]
[1765734832952,0.12861439,88855.0,88854.0,0.06933]
[1765734833158,0.12861439,88855.0,88854.0,0.07033]
[1765734834250,0.02786109,88855.0,88854.0,0.0815835]
[1765734835349,0.02786109,88855.0,88854.0,0.0805835]
[1765734835747,0.02786109,88855.0,88854.0,0.0815835]
[1765734836153,0.02786109,88855.0,88854.0,0.0795835]
[1765734836355,0.02786109,88855.0,88854.0,0.0855835]
[1765734840254,0.05702109,88855.0,88854.0,0.0855835]
[1765734840446,0.02786109,88855.0,88854.0,0.0855835]
[1765734840847,0.08627109,88855.0,88854.0,0.0855835]
[1765734842060,0.08627109,88855.0,88854.0,0.0825835]
[1765734842261,0.08627109,88855.0,88854.0,0.0855835]
[1765734842559,0.05702109,88855.0,88854.0,0.0855835]
[1765734842960,0.02786109,88855.0,88854.0,0.0855835]
[1765734843663,0.05702109,88855.0,88854.0,0.0855835]
[1765734843862,0.02916,88855.0,88854.0,0.0855835]
[1765734844164,0.0112523,88864.0,88854.0,0.0855835]
[1765734844165,0.0696623,88864.0,88863.0,0.06088]
[1765734844460,0.09745797,88864.0,88863.0,0.06088]
[1765734845364,0.09745797,88864.0,88863.0,0.06288]
[1765734846565,0.09745797,88864.0,88863.0,0.002]
[1765734847849,0.09845797,88864.0,88863.0,0.001]
[1765734848266,0.09845797,88864.0,88863.0,0.02956]
[1765734848467,0.09945797,88864.0,88863.0,0.02956]
[1765734849065,0.41921,88882.0,88881.0,0.06088]
[1765734850566,0.41921,88882.0,88881.0,0.07212499]
[1765734851169,0.42121,88882.0,88881.0,0.07212499]
[1765734851565,0.42321,88882.0,88881.0,0.07212499]
[1765734856672,0.42321,88882.0,88881.0,0.06088]
[1765734856868,0.42321,88882.0,88881.0,0.02956]
[1765734857273,0.42321,88882.0,88881.0,0.06088]
[1765734858372,0.42321,88882.0,88881.0,0.0724072]
[1765734858778,0.42321,88882.0,88881.0,0.06088]
[1765734860980,0.45087262,88882.0,88881.0,0.06088]
[1765734863875,0.39246262,88882.0,88881.0,0.06088]
[1765734864087,0.00011084,88890.0,88889.0,0.072129]
[1765734864386,0.0112466,88909.0,88908.0,0.01011]
[1765734864685,0.02916,88908.0,88907.0,0.0112468]
[1765734864889,0.02938514,88921.0,88920.0,0.0721251]
[1765734865088,0.05701201,88921.0,88920.0,0.4329251]
[1765734865287,0.00022514,88921.0,88920.0,0.4329251]
[1765734865591,0.07697,88938.0,88937.0,0.072123]
[1765734865788,0.10455701,88938.0,88937.0,0.432923]
[1765734866091,0.07697,88938.0,88937.0,0.432923]
[1765734866785,0.07697,88938.0,88937.0,0.451123]
[1765734867083,0.08097,88938.0,88937.0,0.451123]
[1765734867880,0.06241,88938.0,88937.0,0.451123]
[1765734868486,0.06641,88938.0,88937.0,0.451123]
[1765734873593,0.008,88938.0,88937.0,0.451123]
[1765734873981,0.05915,88938.0,88937.0,0.451123]
[1765734874181,0.14073,88938.0,88937.0,0.451123]
[1765734874689,0.14073,88938.0,88937.0,0.43988]
[1765734874880,0.14073,88938.0,88937.0,0.3608]
[1765734875082,0.14073,88938.0,88937.0,0.41271]
[1765734875889,0.14073,88938.0,88937.0,0.3608]
[1765734877885,0.10954,88938.0,88937.0,0.46223]
[1765734880793,0.14073,88938.0,88937.0,0.46223]
[1765734882888,0.10954,88938.0,88937.0,0.46223]
[1765734883889,0.13699331,88938.0,88937.0,0.46223]
[1765734884089,0.03545331,88938.0,88937.0,0.46223]
[1765734884791,0.08660331,88938.0,88937.0,0.46223]
[1765734884995,0.13699331,88938.0,88937.0,0.46223]
[1765734886597,0.16818331,88938.0,88937.0,0.46223]
[1765734887098,0.13699331,88938.0,88937.0,0.46223]
[1765734887594,0.03545331,88938.0,88937.0,0.46223]
[1765734888297,0.008,88938.0,88937.0,0.46223]
[1765734888496,0.05,88950.0,88949.0,0.10143]
[1765734888795,0.0775083,88950.0,88949.0,1.1772714]
[1765734888998,0.0775083,88950.0,88949.0,1.1975214]
[1765734890303,0.1286583,88950.0,88949.0,1.1974814]
[1765734890690,0.1296583,88950.0,88949.0,1.1974814]
[1765734891104,0.0785083,88950.0,88949.0,1.1974814]
[1765734891795,0.0795083,88950.0,88949.0,1.1974814]
[1765734892105,0.04680636,88950.0,88949.0,1.1974814]
[1765734892396,0.03119,88974.0,88949.0,1.1974814]
[1765734892397,0.06041036,88961.0,88960.0,0.1126701]
[1765734892595,0.06041036,88961.0,88960.0,0.4734701]
[1765734892793,0.06041036,88962.0,88961.0,0.10143]
[1765734892997,0.0424283,88974.0,88961.0,0.10143]
[1765734892998,0.12297756,88970.0,88969.0,0.10143]
[1765734893303,0.13273,88970.0,88969.0,0.46223]
[1765734894900,0.13273,88970.0,88969.0,0.3608]
[1765734895102,0.13273,88970.0,88969.0,0.41271]
[1765734895498,0.13573,88970.0,88969.0,0.3608]
[1765734898102,0.1141798,88962.0,88961.0,0.00016864]
[1765734898296,0.19481176,88962.0,88961.0,0.00016864]
[1765734898495,0.1141798,88962.0,88961.0,0.00016864]
[1765734899194,0.19681393,88962.0,88961.0,0.00016864]
[1765734899395,0.1161798,88962.0,88961.0,0.00016864]
[1765734900308,0.19681405,88962.0,88961.0,0.00016864]
[1765734900906,0.19681989,88962.0,88961.0,0.00016864]
[1765734901107,0.1161798,88962.0,88961.0,0.00016864]
[1765734901304,0.19682541,88962.0,88961.0,0.00016864]
[1765734902307,0.19684305,88962.0,88961.0,0.00016864]
[1765734902507,0.1161798,88962.0,88961.0,0.00016864]
[1765734904204,0.1161798,88962.0,88948.0,0.3608]
[1765734904205,0.1372614,88949.0,88948.0,0.3608]
[1765734904400,0.1372614,88949.0,88948.0,0.46571]
[1765734904401,0.16468661,88949.0,88948.0,0.46571]
[1765734904606,0.14160661,88949.0,88948.0,0.4769516]
[1765734905302,0.14160661,88949.0,88948.0,0.46571]
[1765734905513,0.17197661,88949.0,88948.0,0.46571]
[1765734905909,0.17197661,88949.0,88948.0,0.3608]
[1765734906117,0.1141825,88941.0,88940.0,0.36096864]
[1765734906300,0.14160771,88941.0,88940.0,0.36096864]
[1765734907207,0.14160771,88941.0,88940.0,0.36296864]
[1765734908005,0.14160771,88941.0,88940.0,0.36396864]
[1765734908907,0.20212724,88941.0,88940.0,0.36496864]
[1765734910314,0.14160771,88941.0,88940.0,0.36496864]
[1765734912217,0.14160771,88941.0,88940.0,0.00416864]
[1765734914417,0.1141837,88931.0,88930.0,0.3608]
[1765734914719,0.1141849,88922.0,88921.0,0.41321]
[1765734914919,0.14161011,88922.0,88921.0,0.3608]
[1765734915305,0.14161011,88922.0,88921.0,0.46571]
[1765734916217,0.14161011,88922.0,88921.0,0.46771]
[1765734917617,0.14161011,88922.0,88921.0,0.46871]
[1765734917909,0.14161011,88922.0,88921.0,0.3638]
[1765734918307,0.14161011,88922.0,88921.0,0.46871]
[1765734919518,0.14161011,88922.0,88921.0,0.3618]
[1765734919824,0.14261011,88922.0,88921.0,0.46571]
[1765734920207,0.14261011,88922.0,88921.0,0.46671]
[1765734920410,0.1141849,88922.0,88921.0,0.46671]
[1765734920821,0.0112445,88926.0,88922.0,0.0112449]
[1765734921120,0.0112445,88926.0,88925.0,0.10491]
[1765734921527,0.0636445,88926.0,88925.0,0.10491]
[1765734921707,0.1141845,88926.0,88925.0,0.10491]
[1765734923018,0.0636445,88926.0,88925.0,0.10691]
[1765734923328,0.1141845,88926.0,88925.0,0.10691]
[1765734924022,0.1141845,88926.0,88925.0,0.10891]
[1765734924424,0.0636445,88926.0,88925.0,0.1201545]
[1765734925511,0.0636445,88926.0,88925.0,0.1181545]
[1765734925715,0.0636445,88926.0,88925.0,0.10891]
[1765734926124,0.0524,88926.0,88925.0,0.1201545]
[1765734926322,0.10294,88926.0,88925.0,0.1201545]
[1765734926829,0.11433254,88930.0,88929.0,0.10377]
[1765734927029,0.14194792,88930.0,88929.0,0.46457]
[1765734928025,0.14194792,88930.0,88929.0,0.46657]
[1765734928531,0.03902792,88930.0,88929.0,0.477814]
[1765734928726,0.03902792,88930.0,88929.0,0.479814]
[1765734928921,0.09232792,88930.0,88929.0,0.479814]
[1765734929230,0.14194792,88930.0,88929.0,0.479814]
[1765734930430,0.09232792,88930.0,88929.0,0.479814]
[1765734932622,0.14194792,88930.0,88929.0,0.46857]
[1765734933218,0.14194792,88930.0,88929.0,0.479814]
[1765734935030,0.09232792,88930.0,88929.0,0.479814]
[1765734937426,0.14194792,88930.0,88929.0,0.479814]
[1765734938030,0.02778402,88930.0,88929.0,0.479814]
[1765734938231,0.00016864,88930.0,88929.0,0.479814]
[1765734938418,0.0112422,88944.0,88943.0,0.10377]
[1765734938726,0.1141617,88948.0,88947.0,0.10377]
[1765734939031,0.02769161,88948.0,88947.0,0.1150117]
[1765734939423,0.02769161,88948.0,88947.0,0.4758117]
[1765734939832,0.02869161,88948.0,88947.0,0.4758117]
[1765734940026,0.08199161,88948.0,88947.0,0.4758117]
[1765734940232,0.13161161,88948.0,88947.0,0.4758117]
[1765734940430,0.13361161,88948.0,88947.0,0.4758117]
[1765734941330,0.10592,88948.0,88947.0,0.4758117]
[1765734941526,0.03065905,88948.0,88947.0,0.4758117]
[1765734941731,0.002,88948.0,88947.0,0.4768117]
[1765734942034,0.00016798,88956.0,88947.0,0.4768117]
[1765734942035,0.10308798,88956.0,88955.0,0.1150107]
[1765734942334,0.10308798,88956.0,88955.0,0.5077407]
[1765734942520,0.05346798,88956.0,88955.0,0.5077407]
[1765734943026,0.10308798,88956.0,88955.0,0.5077407]
[1765734943227,0.10408798,88956.0,88955.0,0.51926426]
[1765734943426,0.10508798,88956.0,88955.0,0.51926426]
[1765734943624,0.10508798,88956.0,88955.0,0.5077407]
[1765734944626,0.00216798,88956.0,88955.0,0.5077407]
[1765734944930,0.10508798,88956.0,88955.0,0.5077407]
[1765734945133,0.10508798,88956.0,88955.0,0.46457]
[1765734947530,0.13553798,88956.0,88955.0,0.3608]
[1765734947734,0.13553798,88956.0,88955.0,0.46457]
[1765734947924,0.16313997,88956.0,88955.0,0.46457]
[1765734948730,0.16313997,88956.0,88955.0,0.10377]
[1765734948931,0.114162,88945.0,88944.0,0.1357]
[1765734949131,0.11632858,88956.0,88955.0,0.10377]
[1765734950021,0.11532858,88956.0,88955.0,0.10377]
[1765734950824,0.11432858,88956.0,88955.0,0.10377]
[1765734951631,0.11532858,88956.0,88955.0,0.10377]
[1765734952234,0.00116798,88956.0,88955.0,0.10377]
[1765734952435,0.00216798,88956.0,88955.0,0.10377]
[1765734956927,0.04624798,88956.0,88955.0,0.10377]
[1765734957334,0.00216798,88956.0,88955.0,0.10377]
[1765734959042,0.00216798,88956.0,88955.0,0.13123]
[1765734960246,0.00216798,88956.0,88955.0,0.49203]
[1765734962749,0.00216798,88956.0,88955.0,0.13123]
[1765734962950,0.00216798,88956.0,88955.0,0.49203]
[1765734964357,0.09055798,88956.0,88955.0,0.46457]
[1765734965162,0.04624798,88956.0,88955.0,0.49203]
[1765734966351,0.07374124,88956.0,88955.0,0.49203]
[1765734966661,0.11805124,88956.0,88955.0,0.49203]
[1765734967457,0.07374124,88956.0,88955.0,0.49203]
[1765734967762,0.11805124,88956.0,88955.0,0.49203]
[1765734969055,0.11805124,88956.0,88955.0,0.46457]
[1765734969256,0.0112411,88952.0,88951.0,0.40749]
[1765734969461,0.0112411,88952.0,88951.0,0.09152]
[1765734969462,0.0996311,88952.0,88951.0,0.09152]
[1765734969658,0.12712436,88952.0,88951.0,0.09152]
[1765734969859,0.02749326,88952.0,88951.0,0.09152]
[1765734970051,0.04408,88952.0,88951.0,0.09152]
[1765734970252,0.11588326,88952.0,88951.0,0.09152]
[1765734974467,0.02749326,88952.0,88951.0,0.09152]
[1765734974664,0.04408,88955.0,88954.0,0.09152]
[1765734974852,0.07161379,88955.0,88954.0,0.09152]
[1765734975057,0.11592379,88955.0,88954.0,0.09152]
[1765734975557,0.12716449,88955.0,88954.0,0.09152]
[1765734975959,0.15503449,88955.0,88954.0,0.09152]
[1765734976166,0.15503449,88955.0,88954.0,0.04669]
[1765734976667,0.15503449,88955.0,88954.0,0.09152]
[1765734977254,0.0996311,88952.0,88951.0,0.40749]
[1765734977468,0.12716489,88952.0,88951.0,0.45232]
[1765734982066,0.12716489,88952.0,88951.0,0.40749]
[1765734982267,0.0996326,88940.0,88939.0,0.09168864]
[1765734982473,0.15403639,88940.0,88939.0,0.04685864]
[1765734982660,0.15403639,88940.0,88939.0,0.00016864]
[1765734982860,0.0996344,88926.0,88925.0,0.45232]
[1765734983165,0.02753379,88926.0,88925.0,0.45232]
[1765734983366,0.0996334,88934.0,88933.0,0.09152]
[1765734983568,0.11604711,88934.0,88933.0,0.09152]
[1765734985361,0.08839,88934.0,88933.0,0.09152]
[1765734985870,0.08839,88934.0,88933.0,0.45232]
[1765734986660,0.08839,88934.0,88933.0,0.45332]
[1765734987862,0.08839,88934.0,88933.0,0.45432]
[1765734988465,0.08839,88934.0,88933.0,0.45336]
[1765734988972,0.11602464,88934.0,88933.0,0.002]
[1765734989570,0.0980444,88926.0,88925.0,0.00016864]
[1765734989872,0.0980466,88908.0,88907.0,0.04064]
[1765734990070,0.0980474,88902.0,88896.0,0.3608]
[1765734990376,0.12568204,88902.0,88896.0,0.3608]
[1765734990978,0.12568204,88902.0,88893.0,0.00016864]
[1765734991871,0.0980484,88894.0,88893.0,0.00016864]
[1765734992079,0.0980502,88880.0,88879.0,0.44531]
[1765734992374,0.0868,88880.0,88879.0,0.44531]
[1765734992567,0.0868,88880.0,88879.0,0.08451]
[1765734993276,0.0868,88880.0,88879.0,0.08651]
[1765734994376,0.0868,88880.0,88879.0,0.08751]
[1765734994773,0.09250316,88885.0,88884.0,0.08451]
[1765734994975,0.0868,88885.0,88884.0,0.08451]
[1765734995880,0.0868,88885.0,88884.0,0.08551]
[1765734996776,0.0868,88885.0,88884.0,0.08651]
[1765735001570,0.00016873,88888.0,88887.0,0.08451]
[1765735002079,0.00016873,88888.0,88887.0,0.80611]
[1765735002380,0.04886876,88901.0,88900.0,0.0957576]
[1765735002680,0.0112466,88909.0,88900.0,0.4565576]
[1765735002886,0.0112466,88909.0,88908.0,0.08451]
[1765735002887,0.10360117,88909.0,88908.0,0.08451]
[1765735005276,0.0980466,88909.0,88908.0,0.08451]
[1765735005478,0.12547466,88909.0,88908.0,0.08451]
[1765735006684,0.11422806,88909.0,88908.0,0.08451]
[1765735006891,0.12547456,88909.0,88908.0,0.08451]
[1765735017994,0.12560859,88909.0,88908.0,0.08451]
[1765735018488,0.18622891,88909.0,88908.0,0.08451]
[1765735018893,0.12560859,88909.0,88908.0,0.08451]
[1765735019197,0.18622891,88909.0,88908.0,0.08451]